[Event "GER-ch Youth U18 2019"]
[Site "Willingen"]
[Date "2019.06.15"]
[Round "9.5"]
[White "Kuznecovs, Nikita"]
[Black "Browning, Alex"]
[Result "0-1"]
[ECO "E97"]
[WhiteElo "2317"]
[BlackElo "2319"]
[Annotator "ChessBase"]
[PlyCount "110"]
[EventDate "2019.06.07"]
[EventType "swiss"]
[EventRounds "9"]
[EventCountry "GER"]
[SourceTitle "playchess.com"]
[Source "ChessBase"]
[SourceQuality "1"]
[TimeControl "40/5400+30:1800+30"]

1. d4 {[%emt 0:00:00]} Nf6 {[%emt 0:00:00]} 2. c4 {[%emt 0:00:00]} g6 {[%emt 0:00:00]} 3. Nc3 {[%emt 0:00:00]} Bg7 {[%emt 0:00:00]} 4. e4 {[%emt 0:00:00]} d6 {[%emt 0:00:00]} 5. Nf3 {[%emt 0:00:00]} O-O {[%emt 0:00:00]} 6. Be2 {[%emt 0:00:00]} e5 {[%emt 0:00:02]} 7. O-O {[%emt 0:00:05]} Nc6 {[%emt 0:00:02]} 8. d5 {[%emt 0:00:07]} Ne7 {[%emt 0:00:05]} 9. b4 {[%emt 0:00:03]} a5 {[%emt 0:01:13]} 10. Ba3 {[%emt 0:00:08]} axb4 {[%emt 0:01:39]} 11. Bxb4 {[%emt 0:00:06]} Nd7 {[%emt 0:00:14]} 12. a4 {[%emt 0:00:06]} Nc5 {[%emt 0:04:50]} 13. Bxc5 {[%emt 0:00:09]} dxc5 {[%emt 0:00:04]} 14. a5 {[%emt 0:00:07]} Bd7 {[%emt 0:28:52]} 15. Qb3 {[%emt 0:00:06]} Ra7 {[%emt 0:01:46]} 16. a6 {[%emt 0:08:29]} b6 {[%emt 0:16:21]} 17. Nb5 {[%emt 0:00:08]} Bxb5 {[%emt 0:00:46]} 18. cxb5 {[%emt 0:00:07]} Nc8 {[%emt 0:00:11]} 19. Nd2 {[%emt 0:00:08]} Nd6 {[%emt 0:00:15]} 20. f3 {[%emt 0:11:07]} Qe8 {[%emt 0:05:08]} 21. Rab1 {[%emt 0:00:28]} Ra8 {[%emt 0:02:53]} 22. Nc4 {[%emt 0:00:37]} h5 {[%emt 0:01:57]} 23. g3 {[%emt 0:01:16]} Qe7 {[%emt 0:00:49]} 24. Kh1 {[%emt 0:01:23]} h4 {[%emt 0:02:15]} 25. Rg1 {[%emt 0:01:11]} Bf6 {[%emt 0:01:00]} 26. Qc3 {[%emt 0:08:33]} Kg7 {[%emt 0:05:50]} 27. gxh4 {[%emt 0:00:59]} Rh8 {[%emt 0:00:47]} 28. Rg4 {[%emt 0:00:12]} Rh5 {[%emt 0:02:34]} 29. Bd3 {[%emt 0:04:09]} Rah8 {[%emt 0:04:41]} 30. Rb2 {[%emt 0:00:26]} Bxh4 {[%emt 0:01:40]} 31. f4 {[%emt 0:13:28]} Bf6 {[%emt 0:05:52]} 32. f5 {[%emt 0:02:14]} Bg5 {[%emt 0:02:20]} 33. fxg6 {[%emt 0:00:50]} f6 {[%emt 0:00:08]} 34. Nxd6 {[%emt 0:11:52]} cxd6 {[%emt 0:01:02]} 35. Bf1 {[%emt 0:00:10]} Qd7 {[%emt 0:01:50]} 36. Qf3 {[%emt 0:00:29]} Bf4 {[%emt 0:03:48]} 37. h3 {[%emt 0:05:03]} Bc1 {[%emt 0:03:34]} 38. Rc2 {[%emt 0:00:47]} Bg5 {[%emt 0:00:12]} 39. Ra2 {[%emt 0:01:17]} Bf4 {[%emt 0:00:37]} 40. Kg1 {[%emt 0:00:16]} Qa7 {[%emt 0:02:52]} 41. Kh1 {[%emt 0:42:41]} R8h6 {[%emt 0:07:42]} 42. Rf2 {[%emt 0:00:00]} Rh8 {[%emt 0:03:26]} 43. Kg1 {[%emt 0:00:00]} R5h6 {[%emt 0:00:18]} 44. h4 {[%emt 0:00:00]} Rxh4 {[%emt 0:01:48]} 45. Rxh4 {[%emt 0:00:00]} Rxh4 {[%emt 0:00:04]} 46. Bh3 {[%emt 0:00:00]} c4 {[%emt 0:03:44]} 47. Qa3 {[%emt 0:00:00]} f5 {[%emt 0:02:27]} 48. Bxf5 {[%emt 0:00:00]} Qe7 {[%emt 0:01:26]} 49. Rg2 {[%emt 0:00:00]} Rh8 {[%emt 0:00:17]} 50. Rg4 {[%emt 0:00:00]} Bd2 {[%emt 0:00:33]} 51. a7 {[%emt 0:00:00]} Ra8 {[%emt 0:03:20]} 52. Qh3 {[%emt 0:00:00]} Bh6 {[%emt 0:00:57]} 53. Bc8 {[%emt 0:02:25]} Rxc8 {[%emt 0:04:50]} 54. Rf4 {[%emt 0:00:06]} Qg5+ {[%emt 0:00:11]} 55. Kh1 {[%emt 0:00:08]} Qxf4 {[%emt 0:00:05] normal} 0-1

[Event "GER-ch Youth U18 2019"]
[Site "Willingen"]
[Date "2019.06.15"]
[Round "9.6"]
[White "Goldbeck, Lars"]
[Black "Riess, Alexander"]
[Result "1/2-1/2"]
[ECO "D71"]
[WhiteElo "2199"]
[BlackElo "2305"]
[Annotator "ChessBase"]
[PlyCount "57"]
[EventDate "2019.06.07"]
[EventType "swiss"]
[EventRounds "9"]
[EventCountry "GER"]
[SourceTitle "playchess.com"]
[Source "ChessBase"]
[SourceQuality "1"]
[TimeControl "40/5400+30:1800+30"]

1. d4 {[%emt 0:00:00]} Nf6 {[%emt 0:00:00]} 2. c4 {[%emt 0:00:00]} g6 {[%emt 0:00:00]} 3. g3 {[%emt 0:00:00]} Bg7 {[%emt 0:00:00]} 4. Bg2 {[%emt 0:00:00]} d5 {[%emt 0:00:08]} 5. cxd5 {[%emt 0:00:00]} Nxd5 {[%emt 0:00:10]} 6. Nf3 {[%emt 0:00:00]} Nb6 {[%emt 0:00:19]} 7. Nc3 {[%emt 0:00:03]} Nc6 {[%emt 0:00:26]} 8. e3 {[%emt 0:00:05]} O-O {[%emt 0:00:20]} 9. O-O {[%emt 0:00:04]} Re8 {[%emt 0:00:12]} 10. Nh4 {[%emt 0:00:05]} e5 {[%emt 0:00:15]} 11. d5 {[%emt 0:00:05]} Nb4 {[%emt 0:00:19]} 12. Qb3 {[%emt 0:00:11]} Nd3 {[%emt 0:00:22]} 13. Rd1 {[%emt 0:00:07]} Nxc1 {[%emt 0:00:25]} 14. Raxc1 {[%emt 0:00:05]} Bg4 {[%emt 0:00:22]} 15. Bf3 {[%emt 0:00:22]} Bd7 {[%emt 0:00:11]} 16. e4 {[%emt 0:00:36]} Bh6 {[%emt 0:11:17]} 17. Rc2 {[%emt 0:02:26]} Bf8 {[%emt 0:00:21]} 18. Be2 {[%emt 0:06:37]} a5 {[%emt 0:01:53]} 19. Nb5 {[%emt 0:16:45]} Bd6 {[%emt 0:06:26]} 20. Rdc1 {[%emt 0:13:22]} Bxb5 {[%emt 0:04:48]} 21. Bxb5 {[%emt 0:00:07]} Rf8 {[%emt 0:02:41]} 22. Bf1 {[%emt 0:04:45]} Qe7 {[%emt 0:17:21]} 23. Bh3 {[%emt 0:12:33]} Kh8 {[%emt 0:06:04]} 24. Ng2 {[%emt 0:04:34]} a4 {[%emt 0:04:30]} 25. Qc3 {[%emt 0:06:57]} Kg8 {[%emt 0:05:13]} 26. Ne1 {[%emt 0:06:54]} Qg5 {[%emt 0:03:22]} 27. Nd3 {[%emt 0:03:01]} Qh5 {[%emt 0:02:54]} 28. Bf1 {[%emt 0:01:19]} Nd7 {[%emt 0:01:33]} 29. Qd2 {[%emt 0:05:31] normal} 1/2-1/2

[Event "GER-ch Youth U18 2019"]
[Site "Willingen"]
[Date "2019.06.15"]
[Round "9.8"]
[White "Faerber, David"]
[Black "Lange, Jannis"]
[Result "1-0"]
[ECO "B33"]
[WhiteElo "2293"]
[BlackElo "2024"]
[Annotator "ChessBase"]
[PlyCount "79"]
[EventDate "2019.06.07"]
[EventType "swiss"]
[EventRounds "9"]
[EventCountry "GER"]
[SourceTitle "playchess.com"]
[Source "ChessBase"]
[SourceQuality "1"]
[TimeControl "40/5400+30:1800+30"]

1. e4 {[%emt 0:00:00]} c5 {[%emt 0:00:00]} 2. Nf3 {[%emt 0:00:05]} Nc6 {[%emt 0:00:00]} 3. d4 {[%emt 0:00:18]} cxd4 {[%emt 0:00:00]} 4. Nxd4 {[%emt 0:00:03]} Nf6 {[%emt 0:00:00]} 5. Nc3 {[%emt 0:00:01]} e5 {[%emt 0:00:00]} 6. Ndb5 {[%emt 0:00:02]} d6 {[%emt 0:00:02]} 7. Bg5 {[%emt 0:00:05]} a6 {[%emt 0:00:03]} 8. Na3 {[%emt 0:00:03]} b5 {[%emt 0:00:03]} 9. Nd5 {[%emt 0:00:21]} Be7 {[%emt 0:00:05]} 10. Bxf6 {[%emt 0:00:21]} Bxf6 {[%emt 0:00:05]} 11. c3 {[%emt 0:00:04]} Bg5 {[%emt 0:02:04]} 12. Nc2 {[%emt 0:00:38]} Rb8 {[%emt 0:06:13]} 13. g3 {[%emt 0:00:27]} O-O {[%emt 0:00:39]} 14. h4 {[%emt 0:00:03]} Bh6 {[%emt 0:00:56]} 15. Bh3 {[%emt 0:00:06]} Be6 {[%emt 0:00:19]} 16. Bxe6 {[%emt 0:00:08]} fxe6 {[%emt 0:00:08]} 17. O-O {[%emt 0:00:30]} Kh8 {[%emt 0:19:03]} 18. Nde3 {[%emt 0:00:29]} Bxe3 {[%emt 0:00:38]} 19. Nxe3 {[%emt 0:00:07]} Qc7 {[%emt 0:03:46]} 20. Qb3 {[%emt 0:03:04]} Qf7 {[%emt 0:04:07]} 21. Rad1 {[%emt 0:00:53]} Rbd8 {[%emt 0:01:35]} 22. a4 {[%emt 0:14:00]} b4 {[%emt 0:31:51]} 23. Qc4 {[%emt 0:03:38]} Ne7 {[%emt 0:03:07]} 24. Qxa6 {[%emt 0:07:34]} d5 {[%emt 0:00:28]} 25. exd5 {[%emt 0:03:16]} exd5 {[%emt 0:00:12]} 26. cxb4 {[%emt 0:11:32]} d4 {[%emt 0:02:22]} 27. Ng4 {[%emt 0:08:17]} e4 {[%emt 0:07:31]} 28. Rde1 {[%emt 0:16:53]} h5 {[%emt 0:03:43]} 29. Nh2 {[%emt 0:05:13]} d3 {[%emt 0:14:05]} 30. Qa7 {[%emt 0:03:12]} Qe6 {[%emt 0:01:00]} 31. Qe3 {[%emt 0:02:57]} Nf5 {[%emt 0:00:37]} 32. Qxe4 {[%emt 0:01:23]} Qg6 {[%emt 0:00:34]} 33. Nf3 {[%emt 0:02:33]} Rfe8 {[%emt 0:00:26]} 34. Qf4 {[%emt 0:01:00]} Rf8 {[%emt 0:00:33]} 35. Ne5 {[%emt 0:00:40]} Qh7 {[%emt 0:00:30]} 36. Qg5 {[%emt 0:00:30]} Rd6 {[%emt 0:00:13]} 37. Nf7+ {[%emt 0:01:03]} Rxf7 {[%emt 0:00:16]} 38. Re8+ {[%emt 0:00:05]} Qg8 {[%emt 0:00:03]} 39. Qxh5+ {[%emt 0:00:26]} Rh6 {[%emt 0:00:31]} 40. Qxf7 {[%emt 0:00:12] normal} 1-0

[Event "GER-ch Youth U18 2019"]
[Site "Willingen"]
[Date "2019.06.15"]
[Round "9.9"]
[White "Rockmann, Jan-Okke"]
[Black "Muetsch, Annmarie"]
[Result "0-1"]
[ECO "E73"]
[WhiteElo "1816"]
[BlackElo "2266"]
[Annotator "ChessBase"]
[PlyCount "54"]
[EventDate "2019.06.07"]
[EventType "swiss"]
[EventRounds "9"]
[EventCountry "GER"]
[SourceTitle "playchess.com"]
[Source "ChessBase"]
[SourceQuality "1"]
[TimeControl "40/5400+30:1800+30"]

1. c4 {[%emt 0:00:00]} Nf6 {[%emt 0:00:00]} 2. Nc3 {[%emt 0:00:00]} g6 {[%emt 0:00:00]} 3. d4 {[%emt 0:00:00]} Bg7 {[%emt 0:00:03]} 4. e4 {[%emt 0:00:00]} d6 {[%emt 0:00:04]} 5. Be2 {[%emt 0:00:02]} O-O {[%emt 0:00:13]} 6. Be3 {[%emt 0:00:09]} Na6 {[%emt 0:00:45]} 7. g4 {[%emt 0:00:30]} e5 {[%emt 0:01:08]} 8. d5 {[%emt 0:00:05]} Nc5 {[%emt 0:00:09]} 9. Bf3 {[%emt 0:00:08]} a5 {[%emt 0:01:27]} 10. h4 {[%emt 0:00:46]} Ne8 {[%emt 0:00:49]} 11. h5 {[%emt 0:15:34]} Bd7 {[%emt 0:05:20]} 12. Nh3 {[%emt 0:08:20]} c6 {[%emt 0:07:36]} 13. hxg6 {[%emt 0:16:09]} fxg6 {[%emt 0:04:16]} 14. Qe2 {[%emt 0:01:41]} a4 {[%emt 0:04:34]} 15. Rd1 {[%emt 0:03:20]} Qa5 {[%emt 0:06:36]} 16. dxc6 {[%emt 0:17:35]} bxc6 {[%emt 0:13:59]} 17. Kf1 {[%emt 0:04:57]} a3 {[%emt 0:04:54]} 18. Kg2 {[%emt 0:00:05]} Rb8 {[%emt 0:02:38]} 19. Nb5 {[%emt 0:05:28]} cxb5 {[%emt 0:07:30]} 20. Bxc5 {[%emt 0:00:14]} Qc7 {[%emt 0:00:19]} 21. Bxd6 {[%emt 0:07:32]} Nxd6 {[%emt 0:00:38]} 22. Qd2 {[%emt 0:00:20]} Nxc4 {[%emt 0:05:43]} 23. Qd5+ {[%emt 0:00:14]} Rf7 {[%emt 0:02:22]} 24. Ng5 {[%emt 0:00:08]} Bc6 {[%emt 0:00:05]} 25. Qe6 {[%emt 0:00:18]} Re8 {[%emt 0:00:41]} 26. Rd8 {[%emt 0:00:08]} Rxd8 {[%emt 0:01:13]} 27. Rxh7 {[%emt 0:00:08]} Rd6 {[%emt 0:01:13] normal} 0-1

[Event "GER-ch Youth U18 2019"]
[Site "Willingen"]
[Date "2019.06.15"]
[Round "9.10"]
[White "Ewert, Hannes"]
[Black "Schneider, Jana"]
[Result "1/2-1/2"]
[ECO "E06"]
[WhiteElo "2268"]
[BlackElo "2235"]
[Annotator "ChessBase"]
[PlyCount "92"]
[EventDate "2019.06.07"]
[EventType "swiss"]
[EventRounds "9"]
[EventCountry "GER"]
[SourceTitle "playchess.com"]
[Source "ChessBase"]
[SourceQuality "1"]
[TimeControl "40/5400+30:1800+30"]

1. d4 {[%emt 0:00:00]} Nf6 {[%emt 0:00:00]} 2. c4 {[%emt 0:00:00]} e6 {[%emt 0:00:00]} 3. Nf3 {[%emt 0:00:00]} d5 {[%emt 0:00:00]} 4. g3 {[%emt 0:00:09]} Be7 {[%emt 0:00:19]} 5. Bg2 {[%emt 0:01:38]} O-O {[%emt 0:00:16]} 6. O-O {[%emt 0:00:48]} c6 {[%emt 0:00:19]} 7. Qc2 {[%emt 0:02:03]} b6 {[%emt 0:00:53]} 8. b3 {[%emt 0:02:24]} Bb7 {[%emt 0:00:19]} 9. Nc3 {[%emt 0:01:19]} Na6 {[%emt 0:02:42]} 10. Rd1 {[%emt 0:06:32]} Rc8 {[%emt 0:01:29]} 11. e4 {[%emt 0:03:50]} Re8 {[%emt 0:02:46]} 12. Bb2 Bf8 {[%emt 0:07:42]} 13. Rac1 {[%emt 0:11:00]} Qe7 {[%emt 0:03:50]} 14. e5 {[%emt 0:20:21]} Nd7 {[%emt 0:00:57]} 15. cxd5 {[%emt 0:08:06]} exd5 {[%emt 0:00:54]} 16. Qd2 {[%emt 0:11:29]} Nc7 {[%emt 0:05:38]} 17. Nh4 {[%emt 0:01:52]} g6 {[%emt 0:06:24]} 18. f4 {[%emt 0:02:48]} Bh6 {[%emt 0:01:35]} 19. Rc2 {[%emt 0:08:22]} Ne6 {[%emt 0:07:12]} 20. Qf2 {[%emt 0:01:54]} Ng7 {[%emt 0:00:40]} 21. Bh3 {[%emt 0:04:45]} Rcd8 {[%emt 0:03:29]} 22. Re2 {[%emt 0:05:47]} Nf8 {[%emt 0:02:33]} 23. Bc1 {[%emt 0:02:55]} f5 {[%emt 0:03:44]} 24. Be3 {[%emt 0:01:18]} Nfe6 {[%emt 0:03:01]} 25. Rc2 {[%emt 0:01:01]} Nh5 {[%emt 0:04:03]} 26. Nf3 {[%emt 0:01:15]} Bf8 {[%emt 0:01:34]} 27. Rb1 {[%emt 0:00:54]} c5 {[%emt 0:10:50]} 28. Nb5 {[%emt 0:00:48]} Qd7 {[%emt 0:04:08]} 29. Bf1 {[%emt 0:00:01]} a6 {[%emt 0:02:14]} 30. Nd6 {[%emt 0:00:54]} Bxd6 {[%emt 0:01:38]} 31. exd6 {[%emt 0:00:01]} cxd4 {[%emt 0:00:57]} 32. Nxd4 {[%emt 0:00:28]} Qxd6 {[%emt 0:01:10]} 33. Nxe6 {[%emt 0:00:17]} Rxe6 {[%emt 0:00:21]} 34. Bd4 {[%emt 0:00:17]} Nf6 {[%emt 0:01:49]} 35. Rbc1 {[%emt 0:01:10]} Rd7 {[%emt 0:01:40]} 36. Be5 {[%emt 0:00:49]} Qe7 {[%emt 0:04:54]} 37. Bd4 {[%emt 0:00:16]} Qd6 {[%emt 0:10:37]} 38. Bd3 {[%emt 0:00:44]} Ng4 {[%emt 0:01:36]} 39. Qd2 {[%emt 0:00:37]} Qe7 {[%emt 0:02:07]} 40. Rc3 {[%emt 0:00:35]} Qe8 {[%emt 0:01:47]} 41. Rc7 {[%emt 0:07:21]} Rde7 {[%emt 0:10:27]} 42. a4 {[%emt 0:04:35]} a5 {[%emt 0:04:14]} 43. Bb5 {[%emt 0:06:11]} Qd8 {[%emt 0:00:50]} 44. Rxe7 {[%emt 0:00:06]} Qxe7 {[%emt 0:00:11]} 45. h3 {[%emt 0:04:56]} Nf6 {[%emt 0:00:51]} 46. Be5 {[%emt 0:01:41]} Ne4 {[%emt 0:01:22] normal} 1/2-1/2

[Event "GER-ch Youth U18 2019"]
[Site "Willingen"]
[Date "2019.06.15"]
[Round "9.11"]
[White "Wendler, David"]
[Black "Wong, Gengchun"]
[Result "1/2-1/2"]
[ECO "B22"]
[WhiteElo "2166"]
[BlackElo "2144"]
[Annotator "ChessBase"]
[PlyCount "48"]
[EventDate "2019.06.07"]
[EventType "swiss"]
[EventRounds "9"]
[EventCountry "GER"]
[SourceTitle "playchess.com"]
[Source "ChessBase"]
[SourceQuality "1"]
[TimeControl "40/5400+30:1800+30"]

1. e4 {[%emt 0:00:00]} c5 {[%emt 0:00:00]} 2. c3 {[%emt 0:00:00]} d5 {[%emt 0:00:00]} 3. exd5 {[%emt 0:00:00]} Qxd5 {[%emt 0:00:00]} 4. d4 {[%emt 0:00:00]} Nf6 {[%emt 0:00:00]} 5. Nf3 {[%emt 0:00:08]} Bg4 {[%emt 0:00:00]} 6. Nbd2 {[%emt 0:00:21]} Nc6 {[%emt 0:01:03]} 7. Bc4 {[%emt 0:01:43]} Bxf3 {[%emt 0:00:44]} 8. Qb3 {[%emt 0:00:30]} Na5 {[%emt 0:00:40]} 9. Qb5+ {[%emt 0:00:55]} Qd7 {[%emt 0:00:12]} 10. Nxf3 {[%emt 0:00:20]} Nxc4 {[%emt 0:00:07]} 11. Qxc4 {[%emt 0:00:04]} cxd4 {[%emt 0:00:10]} 12. Nxd4 {[%emt 0:00:10]} e6 {[%emt 0:00:17]} 13. Bg5 {[%emt 0:04:12]} Rc8 {[%emt 0:02:08]} 14. Qe2 {[%emt 0:02:27]} Be7 {[%emt 0:00:17]} 15. O-O-O {[%emt 0:10:24]} Qd5 {[%emt 0:17:36]} 16. f4 {[%emt 0:01:17]} O-O {[%emt 0:02:51]} 17. Kb1 {[%emt 0:01:00]} Qc4 {[%emt 0:03:48]} 18. Rhe1 {[%emt 0:07:12]} h6 {[%emt 0:07:55]} 19. Bh4 {[%emt 0:03:13]} Nd5 {[%emt 0:13:51]} 20. Bxe7 {[%emt 0:11:03]} Nxe7 {[%emt 0:03:36]} 21. Qxc4 {[%emt 0:15:17]} Rxc4 {[%emt 0:00:06]} 22. g3 {[%emt 0:06:01]} a6 {[%emt 0:02:10]} 23. Nf3 {[%emt 0:03:21]} Rc7 {[%emt 0:02:20]} 24. Re4 {[%emt 0:02:42]} Rfc8 {[%emt 0:00:39] normal} 1/2-1/2

[Event "GER-ch Youth U18 2019"]
[Site "Willingen"]
[Date "2019.06.15"]
[Round "9.13"]
[White "Hinrichs, Niklas"]
[Black "Knoedler, Marcel"]
[Result "1-0"]
[ECO "D35"]
[WhiteElo "2115"]
[BlackElo "1633"]
[Annotator "ChessBase"]
[PlyCount "71"]
[EventDate "2019.06.07"]
[EventType "swiss"]
[EventRounds "9"]
[EventCountry "GER"]
[SourceTitle "playchess.com"]
[Source "ChessBase"]
[SourceQuality "1"]
[TimeControl "40/5400+30:1800+30"]

1. d4 d5 {[%emt 0:00:00]} 2. c4 {[%emt 0:00:00]} e6 {[%emt 0:00:33]} 3. Nc3 {[%emt 0:00:00]} Nf6 {[%emt 0:00:05]} 4. cxd5 {[%emt 0:00:00]} exd5 {[%emt 0:00:05]} 5. Bg5 Be7 {[%emt 0:00:47]} 6. e3 {[%emt 0:00:35]} O-O {[%emt 0:02:52]} 7. Bd3 c6 {[%emt 0:02:31]} 8. Qc2 {[%emt 0:06:42]} Nbd7 {[%emt 0:01:58]} 9. h3 {[%emt 0:05:38]} Re8 10. O-O-O {[%emt 0:04:42]} Nf8 {[%emt 0:05:38]} 11. Nf3 {[%emt 0:01:46]} a5 {[%emt 0:03:53]} 12. Kb1 {[%emt 0:06:57]} a4 {[%emt 0:11:02]} 13. g4 {[%emt 0:03:32]} b5 {[%emt 0:05:42]} 14. Ne2 {[%emt 0:04:50]} Qb6 15. Rc1 {[%emt 0:00:59]} Bb7 {[%emt 0:08:18]} 16. Ng3 {[%emt 0:02:53]} b4 {[%emt 0:02:59]} 17. Qd2 {[%emt 0:02:32]} Rac8 {[%emt 0:14:27]} 18. Nf5 c5 {[%emt 0:07:07]} 19. Nxe7+ {[%emt 0:01:47]} Rxe7 20. dxc5 Rxc5 {[%emt 0:02:34]} 21. Rxc5 {[%emt 0:01:07]} Qxc5 {[%emt 0:00:16]} 22. Bxf6 {[%emt 0:00:13]} gxf6 {[%emt 0:00:14]} 23. Rc1 {[%emt 0:00:22]} Qb6 {[%emt 0:01:16]} 24. Nd4 b3 {[%emt 0:06:23]} 25. a3 {[%emt 0:05:40]} Ne6 26. Bf5 {[%emt 0:08:54]} Nxd4 {[%emt 0:12:05]} 27. exd4 {[%emt 0:01:04]} Kg7 {[%emt 0:00:15]} 28. g5 {[%emt 0:04:25]} Ba6 {[%emt 0:01:40]} 29. Rg1 {[%emt 0:02:15]} Kh8 {[%emt 0:03:00]} 30. Qf4 {[%emt 0:01:57]} Qa5 {[%emt 0:07:39]} 31. Qb8+ {[%emt 0:00:33]} Kg7 {[%emt 0:00:08]} 32. gxf6+ {[%emt 0:00:16]} Kxf6 {[%emt 0:00:12]} 33. Qd6+ {[%emt 0:00:21]} Re6 {[%emt 0:00:11]} 34. Bxe6 {[%emt 0:00:48]} Bd3+ {[%emt 0:00:28]} 35. Ka1 {[%emt 0:00:13]} fxe6 36. Qf8# {normal} 1-0